lending/lending_fUSD_20240603
["ID","MTS","AMOUNT","RATE_DAILY","PERIOD"]
[328469800,1717423844110,-500.0,0.00030958,4]
[328469801,1717423844119,-519.54452518,0.00030958,4]
[328469802,1717423844129,-500.0,0.00030958,4]
[328469803,1717423844140,-500.0,0.00030958,4]
[328469804,1717423844148,-500.0,0.00030958,4]
[328469805,1717423844157,-500.0,0.00030958,4]
[328469806,1717423844167,-500.0,0.00030958,4]
[328469807,1717423844176,-500.0,0.00030958,4]
[328469808,1717423844185,-548.25998209,0.00030958,4]
[328469809,1717423844194,-500.0,0.00030958,4]
[328469810,1717423844203,-500.0,0.00030958,4]
[328469811,1717423844214,-500.0,0.00030958,4]
[328469812,1717423844223,-500.0,0.00030958,4]
[328469813,1717423844233,-500.0,0.00030958,4]
[328469814,1717423844243,-336.67,0.00030958,4]
[328469815,1717423844252,-500.0,0.00030958,4]
[328469816,1717423844262,-500.0,0.00030958,4]
[328469817,1717423844271,-510.66281553,0.00030958,4]
[328469818,1717423844281,-500.0,0.00030958,4]
[328469819,1717423844291,-500.0,0.00030958,4]
[328469820,1717423844300,-518.71475012,0.00030958,4]
[328469821,1717423844310,-500.0,0.00030958,4]
[328469822,1717423844319,-500.0,0.00030958,4]
[328469823,1717423844328,-500.0,0.00030958,4]
[328469824,1717423844338,-500.0,0.00030958,4]
[328469825,1717423844348,-500.0,0.00030958,4]
[328469826,1717423844357,-500.0,0.00030958,4]
[328469827,1717423844367,-500.0,0.00030958,4]
[328469828,1717423844376,-151.0,0.00030958,7]
[328469829,1717423844387,-151.0,0.00030958,7]
[328469830,1717423844395,-500.0,0.00030958,4]
[328469831,1717423844405,-151.0,0.00030958,7]
[328469832,1717423844414,-151.0,0.00030958,7]
[328469833,1717423844424,-500.0,0.00030958,4]
[328469834,1717423844434,-151.0,0.00030958,7]
[328469835,1717423844444,-500.0,0.00030958,4]
[328469836,1717423844455,-151.0,0.00030958,7]
[328469837,1717423844465,-151.0,0.00030958,7]
[328469838,1717423844474,-151.0,0.00030958,7]
[328469839,1717423844484,-151.0,0.00030958,7]
[328469840,1717423844494,-500.0,0.00030958,4]
[328469841,1717423844503,-500.0,0.00030958,4]
[328469842,1717423844513,-178.94048769,0.00030958,4]
[328469843,1717423844522,-500.0,0.00030958,4]
[328469844,1717423844531,-156.786101,0.00030958,7]
[328469845,1717423844541,-500.0,0.00030958,4]
[328469846,1717423844550,-500.0,0.00030958,4]
[328469847,1717423844560,-918.28,0.00030958,4]
[328469848,1717423844569,-151.0,0.00030958,7]
[328469849,1717423844579,-1370.83,0.00030958,4]
[328469850,1717423844593,-500.0,0.00030958,4]
[328469851,1717423844611,-500.0,0.00030958,4]
[328469852,1717423844625,-151.0,0.00030958,7]
[328469853,1717423844645,-1000.18,0.00030958,4]
[328469854,1717423844663,-151.0,0.00030958,7]
[328469855,1717423844681,-500.0,0.00030958,4]
[328469856,1717423844699,-2105.69,0.00030958,4]
[328469857,1717423844714,-151.0,0.00030958,7]
[328469858,1717423844729,-500.0,0.00030958,4]
[328469859,1717423844745,-698.67,0.00030958,4]
[328469860,1717423844757,-898.54,0.00030958,4]
[328469861,1717423844772,-5027.84,0.00030958,4]
[328469862,1717423844788,-500.0,0.00030958,4]
[328469863,1717423844805,-500.0,0.00030958,4]
[328469864,1717423844823,-500.0,0.00030958,4]
[328469865,1717423844835,-500.0,0.00030958,4]
[328469866,1717423844853,-500.0,0.00030958,4]
[328469867,1717423844869,-500.0,0.00030958,4]
[328469868,1717423844885,-500.0,0.00030958,4]
[328469869,1717423844900,-500.0,0.00030958,4]
[328469870,1717423844914,-394.11,0.00030958,4]
[328469871,1717423844930,-500.0,0.00030958,4]
[328469872,1717423844943,-500.0,0.00030958,4]
[328469873,1717423844956,-374.531371,0.00030958,7]
[328469874,1717423844970,-151.0,0.00030958,7]
[328469875,1717423844984,-374.531371,0.00030958,7]
[328469876,1717423844999,-500.0,0.00030958,4]
[328469877,1717423845014,-500.0,0.00030958,4]
[328469878,1717423845028,-500.0,0.00030958,4]
[328469879,1717423845043,-151.0,0.00030958,7]
[328469880,1717423845057,-500.0,0.00030958,4]
[328469881,1717423845071,-500.0,0.00030958,4]
[328469882,1717423845084,-151.0,0.00030958,7]
[328469883,1717423845097,-500.0,0.00030958,4]
[328469884,1717423845111,-151.0,0.00030958,7]
[328469885,1717423845124,-500.0,0.00030958,4]
[328469886,1717423845139,-500.0,0.00030958,4]
[328469887,1717423845153,-151.0,0.00030958,7]
[328469888,1717423845166,-618.53,0.00030958,4]
[328469889,1717423845180,-598.01,0.00030958,4]
[328469890,1717423845194,-4233.41,0.00030958,4]
[328469891,1717423845208,-151.0,0.00030958,7]
[328469892,1717423845222,-151.0,0.00030958,7]
[328469893,1717423845236,-500.0,0.00030958,4]
[328469894,1717423845249,-500.0,0.00030958,4]
[328469895,1717423845263,-500.0,0.00030958,4]
[328469896,1717423845276,-500.0,0.00030958,4]
[328469897,1717423845291,-500.0,0.00030958,4]
[328469898,1717423845305,-151.0,0.00030958,7]
[328469899,1717423845318,-500.0,0.00030958,4]
[328469900,1717423845332,-500.0,0.00030958,4]
[328469901,1717423845345,-500.0,0.00030958,4]
[328469902,1717423845359,-500.0,0.00030958,4]
[328469903,1717423845374,-500.0,0.00030958,4]
[328469904,1717423845389,-500.0,0.00030958,4]
[328469905,1717423845401,-523.72,0.00030958,4]
[328469906,1717423845411,-151.0,0.00030958,7]
[328469907,1717423845420,-500.0,0.00030958,4]
[328469908,1717423845430,-1400.0,0.00031,2]
[328469909,1717423845439,-10547.0,0.00031,4]
[328469910,1717423845449,-2000.0,0.00031,2]
[328469911,1717423845459,-200.0,0.00031,2]
[328469912,1717423845468,-1593.48876069,0.00031,4]
[328469913,1717423845478,-151.0,0.00031,7]
[328469914,1717423845487,-151.0,0.00031,7]
[328469915,1717423845497,-151.0,0.00031,7]
[328469916,1717423845506,-151.0,0.00031,7]
[328469917,1717423845516,-2042.88181228,0.00031019,7]
[328469918,1717423845526,-2042.88181228,0.00031082,7]
[328469919,1717423845535,-1216.31301935,0.00031091,15]
[328469920,1717423845545,-1535.99782312,0.00031091,15]
[328469921,1717423845554,-303.01046065,0.00031104,2]
[328469922,1717423845564,-157.44336949,0.00031114,7]
[328469923,1717423845573,-1176.68345313,0.00031134,2]
[328469924,1717423845582,-2138.2652,0.0003114,2]
[328469925,1717423845592,-152.0,0.00031149,4]
[328469941,1717423845802,-152.656571,0.00031159,2]
[328469944,1717423845825,-1938.41697,0.0003121,2]
[328469947,1717423845844,-500.0,0.0003123,4]
[328469949,1717423845854,-500.0,0.0003123,4]
[328469951,1717423845864,-500.0,0.0003123,4]
[328469953,1717423845873,-500.0,0.0003123,4]
[328469955,1717423845883,-500.0,0.0003123,4]
[328469956,1717423845893,-500.0,0.0003123,4]
[328469958,1717423845902,-500.0,0.0003123,4]
[328469960,1717423845911,-500.0,0.0003123,4]
[328469962,1717423845923,-648.64,0.0003123,4]
[328469964,1717423845932,-389.70975643,0.0003123,4]
[328469966,1717423845941,-500.0,0.0003123,4]
[328469968,1717423845951,-500.0,0.0003123,4]
[328469970,1717423845960,-500.0,0.0003123,4]
[328469972,1717423845969,-500.0,0.0003123,4]
[328469974,1717423845979,-757.65,0.0003123,4]
[328469976,1717423845988,-500.0,0.0003123,4]
[328469978,1717423845997,-500.0,0.0003123,4]
[328469980,1717423846006,-874.8,0.0003123,4]
[328469982,1717423846015,-500.0,0.0003123,4]
[328469984,1717423846024,-500.0,0.0003123,4]
[328469985,1717423846034,-840.86,0.0003123,4]
[328469986,1717423846043,-500.0,0.0003123,4]
[328469987,1717423846053,-500.0,0.0003123,4]
[328469988,1717423846062,-500.0,0.0003123,4]
[328469989,1717423846071,-500.0,0.0003123,4]
[328469990,1717423846081,-500.0,0.0003123,4]
[328469991,1717423846090,-500.0,0.0003123,4]
[328469992,1717423846099,-500.0,0.0003123,4]
[328469993,1717423846108,-500.0,0.0003123,4]
[328469994,1717423846117,-500.0,0.0003123,4]
[328469995,1717423846126,-500.0,0.0003123,4]
[328469996,1717423846136,-500.0,0.0003123,4]
[328469997,1717423846145,-500.0,0.0003123,4]
[328469998,1717423846154,-500.0,0.0003123,4]
[328469999,1717423846163,-500.0,0.0003123,4]
[328470000,1717423846172,-500.0,0.0003123,4]
[328470001,1717423846181,-500.0,0.0003123,4]
[328470002,1717423846190,-500.0,0.0003123,4]
[328470003,1717423846200,-500.0,0.0003123,4]
[328470004,1717423846209,-500.0,0.0003123,4]
[328470005,1717423846219,-500.0,0.0003123,4]
[328470006,1717423846228,-254.04080479,0.0003123,4]
[328470007,1717423846237,-500.0,0.0003123,4]
[328470008,1717423846246,-500.0,0.0003123,4]
[328470009,1717423846255,-500.0,0.0003123,4]
[328470010,1717423846264,-500.0,0.0003123,4]
[328470012,1717423846274,-588.11,0.0003123,4]
[328470014,1717423846283,-500.0,0.0003123,4]
[328470016,1717423846292,-500.0,0.0003123,4]
[328470018,1717423846302,-500.0,0.0003123,4]
[328470020,1717423846312,-516.13,0.0003123,4]
[328470022,1717423846321,-529.46,0.0003123,4]
[328470024,1717423846331,-500.0,0.0003123,4]
[328470026,1717423846340,-500.0,0.0003123,4]
[328470028,1717423846349,-500.0,0.0003123,4]
[328470030,1717423846358,-500.0,0.0003123,4]
[328470032,1717423846368,-500.0,0.0003123,4]
[328470034,1717423846379,-606.72,0.0003123,4]
[328470036,1717423846389,-519.1,0.0003123,4]
[328470038,1717423846399,-500.0,0.0003123,4]
[328470040,1717423846408,-4664.69,0.0003123,4]
[328470042,1717423846418,-877.52,0.0003123,4]
[328470045,1717423846428,-500.0,0.0003123,4]
[328470047,1717423846437,-500.0,0.0003123,4]
[328470049,1717423846446,-881.93,0.0003123,4]
[328470051,1717423846455,-512.78,0.0003123,4]
[328470052,1717423846464,-500.0,0.0003123,4]
[328470054,1717423846474,-173.80395674,0.0003123,4]
[328470057,1717423846483,-500.0,0.0003123,4]
[328470058,1717423846492,-500.0,0.0003123,4]
[328470061,1717423846502,-500.0,0.0003123,4]
[328470063,1717423846511,-504.37,0.0003123,4]
[328470064,1717423846522,-2125.65,0.0003123,4]
[328470066,1717423846531,-542.95,0.0003123,4]
[328470068,1717423846541,-468.48145336,0.0003123,4]
[328470070,1717423846552,-500.0,0.0003123,4]
[328470073,1717423846562,-500.0,0.0003123,4]
[328470075,1717423846571,-630.75,0.0003123,4]
[328470076,1717423846580,-525.61,0.0003123,4]
[328470079,1717423846589,-500.0,0.0003123,4]
[328470081,1717423846599,-500.0,0.0003123,4]
[328470083,1717423846608,-500.0,0.0003123,4]
[328470085,1717423846617,-500.0,0.0003123,4]
[328470087,1717423846628,-500.0,0.0003123,4]
[328470089,1717423846638,-640.02697995,0.0003123,4]
[328470091,1717423846647,-500.0,0.0003123,4]
[328470093,1717423846658,-308.54145366,0.0003123,4]
[328470095,1717423846667,-500.0,0.0003123,4]
[328470097,1717423846675,-500.0,0.0003123,4]
[328470099,1717423846684,-784.39,0.0003123,4]
[328470101,1717423846694,-264.89148284,0.0003123,4]
[328470103,1717423846702,-748.96,0.0003123,4]
[328470105,1717423846712,-500.0,0.0003123,4]
[328470106,1717423846721,-500.0,0.0003123,4]
[328470108,1717423846731,-500.0,0.0003123,4]
[328470111,1717423846740,-616.01,0.0003123,4]
[328470113,1717423846750,-500.0,0.0003123,4]
[328470115,1717423846759,-500.0,0.0003123,4]
[328470116,1717423846768,-653.74,0.0003123,4]
[328470118,1717423846778,-500.0,0.0003123,4]
[328470121,1717423846788,-1158.99,0.0003123,4]
[328470123,1717423846797,-500.0,0.0003123,4]
[328470125,1717423846807,-500.0,0.0003123,4]
[328470127,1717423846815,-500.0,0.0003123,4]
[328470129,1717423846825,-500.0,0.0003123,4]
[328470131,1717423846836,-802.19,0.0003123,4]
[328470133,1717423846850,-500.0,0.0003123,4]
[328470136,1717423846859,-210.73104992,0.0003123,4]
[328470138,1717423846868,-500.0,0.0003123,4]
[328470140,1717423846877,-500.0,0.0003123,4]
[328470142,1717423846887,-500.0,0.0003123,4]
[328470144,1717423846896,-500.0,0.0003123,4]
[328470146,1717423846905,-151.0,0.00031231,7]
[328470148,1717423846915,-151.0,0.00031231,7]
[328470150,1717423846926,-114884.05345952,0.00031232,13]
[328470152,1717423846935,-500.0,0.00031232,4]
[328470154,1717423846944,-500.0,0.00031232,4]
[328470156,1717423846953,-500.0,0.00031232,4]
[328470158,1717423846962,-500.0,0.00031232,4]
[328470159,1717423846971,-151.0,0.00031232,7]
[328470162,1717423846981,-151.0,0.00031232,7]
[328470164,1717423846990,-439.11064847,0.00031232,4]
[328470166,1717423846999,-1068.06,0.00031232,4]
[328470168,1717423847008,-545.91299576,0.00031232,4]
[328470170,1717423847018,-500.0,0.00031232,4]
[328470172,1717423847026,-512.26329673,0.00031232,4]
[328470174,1717423847035,-500.0,0.00031232,4]
[328470175,1717423847045,-500.0,0.00031232,4]
[328470177,1717423847054,-500.0,0.00031232,4]
[328470179,1717423847064,-500.0,0.00031232,4]
[328470181,1717423847073,-500.0,0.00031232,4]
[328470183,1717423847082,-500.0,0.00031232,4]
[328470186,1717423847091,-500.0,0.00031232,4]
[328470187,1717423847100,-500.0,0.00031232,4]
[328470189,1717423847110,-151.0,0.00031232,7]
[328470192,1717423847119,-500.0,0.00031232,4]
[328470194,1717423847128,-344.65440911,0.00031232,4]
[328470196,1717423847139,-500.0,0.00031232,4]
[328470198,1717423847148,-500.0,0.00031232,4]
[328470200,1717423847158,-500.0,0.00031232,4]
[328470201,1717423847166,-500.0,0.00031232,4]
[328470204,1717423847176,-500.0,0.00031232,4]
[328470205,1717423847185,-500.0,0.00031232,4]
[328470208,1717423847194,-151.0,0.00031232,7]
[328470209,1717423847203,-151.0,0.00031232,7]
[328470212,1717423847213,-500.0,0.00031232,4]
[328470213,1717423847222,-510.56381404,0.00031232,4]
[328470216,1717423847231,-513.70503278,0.00031232,4]
[328470217,1717423847240,-563.20376915,0.00031232,4]
[328470220,1717423847250,-500.0,0.00031232,4]
[328470221,1717423847259,-500.0,0.00031232,4]
[328470224,1717423847268,-500.0,0.00031232,4]
[328470225,1717423847278,-500.0,0.00031232,4]
[328470227,1717423847287,-500.0,0.00031232,4]
[328470229,1717423847296,-500.0,0.00031232,4]
[328470231,1717423847306,-500.0,0.00031232,4]
[328470233,1717423847315,-500.0,0.00031232,4]
[328470235,1717423847325,-500.0,0.00031232,4]
[328470237,1717423847334,-500.0,0.00031232,4]
[328470239,1717423847343,-500.0,0.00031232,4]
[328470241,1717423847352,-500.0,0.00031232,4]
[328470243,1717423847362,-500.0,0.00031232,4]
[328470245,1717423847371,-500.0,0.00031232,4]
[328470247,1717423847380,-500.0,0.00031232,4]
[328470250,1717423847391,-500.0,0.00031232,4]
[328470251,1717423847400,-500.0,0.00031232,4]
[328470253,1717423847409,-500.0,0.00031232,4]
[328470255,1717423847419,-500.0,0.00031232,4]
[328470258,1717423847428,-918.28,0.00031232,4]
[328470260,1717423847439,-1370.83,0.00031232,4]
[328470262,1717423847448,-500.0,0.00031232,4]
[328470264,1717423847457,-500.0,0.00031232,4]
[328470266,1717423847466,-151.0,0.00031232,7]
[328470268,1717423847475,-1000.18,0.00031232,4]
[328470270,1717423847484,-151.0,0.00031232,7]
[328470272,1717423847494,-500.0,0.00031232,4]
[328470274,1717423847503,-2105.69,0.00031232,4]
[328470276,1717423847513,-220.619449,0.00031232,7]
[328470278,1717423847522,-335.1406899,0.00031232,4]
[328470280,1717423847532,-698.67,0.00031232,4]
[328470282,1717423847542,-898.54,0.00031232,4]
[328470284,1717423847550,-5027.84,0.00031232,4]
[328470286,1717423847560,-500.0,0.00031232,4]
[328470288,1717423847570,-500.0,0.00031232,4]
[328470290,1717423847579,-500.0,0.00031232,4]
[328470292,1717423847588,-500.0,0.00031232,4]
[328470294,1717423847597,-500.0,0.00031232,4]
[328470296,1717423847607,-211.334701,0.00031232,7]
[328470298,1717423847616,-369.18,0.00031232,4]
[328470300,1717423847625,-211.334701,0.00031232,7]
[328470302,1717423847634,-500.0,0.00031232,4]
[328470303,1717423847643,-500.0,0.00031232,4]
[328470304,1717423847652,-243.99386,0.00031232,7]
[328470305,1717423847661,-500.0,0.00031232,4]
[328470306,1717423847670,-500.0,0.00031232,4]
[328470307,1717423847680,-374.531371,0.00031232,7]
[328470308,1717423847689,-151.0,0.00031232,7]
[328470309,1717423847698,-374.531371,0.00031232,7]
[328470310,1717423847707,-500.0,0.00031232,4]
[328470311,1717423847717,-500.0,0.00031232,4]
[328470312,1717423847726,-500.0,0.00031232,4]
[328470313,1717423847735,-151.0,0.00031232,7]
[328470314,1717423847745,-500.0,0.00031232,4]
[328470315,1717423847754,-500.0,0.00031232,4]
[328470316,1717423847762,-151.0,0.00031232,7]
[328470317,1717423847772,-500.0,0.00031232,4]
[328470318,1717423847781,-151.0,0.00031232,7]
[328470319,1717423847790,-500.0,0.00031232,4]
[328470320,1717423847799,-500.0,0.00031232,4]
[328470321,1717423847808,-151.0,0.00031232,7]
[328470322,1717423847817,-618.53,0.00031232,4]
[328470323,1717423847826,-598.01,0.00031232,4]
[328470324,1717423847840,-4233.41,0.00031232,4]
[328470325,1717423847849,-151.0,0.00031232,7]
[328470326,1717423847858,-151.0,0.00031232,7]
[328470327,1717423847868,-500.0,0.00031232,4]
[328470328,1717423847877,-500.0,0.00031232,4]
[328470329,1717423847888,-500.0,0.00031232,4]
[328470330,1717423847897,-500.0,0.00031232,4]
[328470331,1717423847906,-500.0,0.00031232,4]
[328470332,1717423847915,-500.0,0.00031232,4]
[328470333,1717423847925,-500.0,0.00031232,4]
[328470334,1717423847934,-500.0,0.00031232,4]
[328470335,1717423847944,-287.29385131,0.00031232,4]
[328470336,1717423847953,-500.0,0.00031232,4]
[328470337,1717423847962,-500.0,0.00031232,4]
[328470338,1717423847972,-523.72,0.00031232,4]
[328470339,1717423847981,-151.0,0.00031232,7]
[328470340,1717423847991,-500.0,0.00031232,4]
[328470341,1717423848000,-152.383499,0.00031273,7]
[328470342,1717423848010,-1234.0,0.000313,2]
[328470343,1717423848019,-2000.0,0.0003131,2]
[328470344,1717423848027,-200.0,0.0003131,2]
[328470345,1717423848036,-446.0,0.00031378,2]
[328470346,1717423848045,-2398.0,0.00031378,2]
[328470347,1717423848055,-164.0,0.00031378,2]
[328470348,1717423848064,-808.0,0.00031378,2]
[328470349,1717423848074,-216.0,0.00031378,2]
[328470350,1717423848084,-1304.0,0.00031378,2]
[328470351,1717423848094,-3278.613,0.00031378,2]
[328470352,1717423848103,-659.132,0.00031378,2]
[328470353,1717423848113,-5141.0,0.00031378,2]
[328470354,1717423848123,-37998.0,0.00031378,2]
[328470355,1717423848132,-1064.0,0.00031378,2]
[328470356,1717423848142,-169.7214169,0.00031385,7]
[328470357,1717423848152,-207.84204188,0.00031404,3]
[328470358,1717423848161,-824.30843045,0.00031406,2]
[328470359,1717423848171,-151.0,0.00031407,7]
[328470360,1717423848180,-2042.88181228,0.00031412,7]
[328470361,1717423848190,-157.44336949,0.00031432,7]
[328470362,1717423848199,-1216.31301935,0.00031442,15]
[328470363,1717423848208,-1535.99782312,0.00031442,15]
[328470364,1717423848217,-2138.2652,0.0003145,2]
[328470365,1717423848226,-174.9857197,0.00031457,7]
[328470366,1717423848237,-2042.88181228,0.0003148,7]
[328470367,1717423848247,-169.7214169,0.00031484,7]
[328470368,1717423848257,-998.8,0.000315,2]
[328470369,1717423848266,-150.0,0.000315,2]
[328470370,1717423848276,-303.01046065,0.00031502,2]
[328470371,1717423848285,-312.0,0.00031504,4]
[328470372,1717423848294,-500.0,0.00031504,4]
[328470373,1717423848303,-500.0,0.00031504,4]
[328470374,1717423848313,-500.0,0.00031504,4]
[328470375,1717423848322,-589.06,0.00031504,4]
[328470376,1717423848332,-500.0,0.00031504,4]
[328470377,1717423848341,-500.0,0.00031504,4]
[328470378,1717423848350,-208.70322727,0.00031504,4]
[328470379,1717423848360,-500.0,0.00031504,4]
[328470380,1717423848369,-500.0,0.00031504,4]
[328470381,1717423848378,-757.65,0.00031504,4]
[328470382,1717423848388,-500.0,0.00031504,4]
[328470383,1717423848396,-151.0,0.00031504,7]
[328470384,1717423848405,-500.0,0.00031504,4]
[328470385,1717423848414,-874.8,0.00031504,4]
[328470386,1717423848424,-151.0,0.00031504,7]
[328470387,1717423848433,-500.0,0.00031504,4]
[328470388,1717423848442,-500.0,0.00031504,4]
[328470389,1717423848451,-192.606882,0.00031504,7]
[328470390,1717423848459,-840.86,0.00031504,4]
[328470391,1717423848468,-151.0,0.00031504,7]
[328470392,1717423848478,-230.327108,0.00031504,7]
[328470393,1717423848488,-500.0,0.00031504,4]
[328470394,1717423848497,-500.0,0.00031504,4]
[328470395,1717423848508,-500.0,0.00031504,4]
[328470396,1717423848517,-500.0,0.00031504,4]
[328470397,1717423848526,-500.0,0.00031504,4]
[328470398,1717423848536,-500.0,0.00031504,4]
[328470399,1717423848545,-500.0,0.00031504,4]
[328470400,1717423848554,-151.0,0.00031504,7]
[328470401,1717423848564,-168.104128,0.00031504,7]
[328470402,1717423848573,-500.0,0.00031504,4]
[328470403,1717423848582,-500.0,0.00031504,4]
[328470404,1717423848591,-500.0,0.00031504,4]
[328470405,1717423848601,-500.0,0.00031504,4]
[328470406,1717423848610,-500.0,0.00031504,4]
[328470407,1717423848620,-507.0,0.00031504,4]
[328470408,1717423848629,-500.0,0.00031504,4]
[328470409,1717423848641,-500.0,0.00031504,4]
[328470410,1717423848650,-500.0,0.00031504,4]
[328470411,1717423848660,-500.0,0.00031504,4]
[328470412,1717423848669,-500.0,0.00031504,4]
[328470413,1717423848679,-500.0,0.00031504,4]
[328470414,1717423848690,-588.11,0.00031504,4]
[328470415,1717423848699,-500.0,0.00031504,4]
[328470416,1717423848709,-500.0,0.00031504,4]
[328470417,1717423848718,-500.0,0.00031504,4]
[328470418,1717423848728,-500.0,0.00031504,4]
[328470419,1717423848737,-516.13,0.00031504,4]
[328470420,1717423848747,-529.46,0.00031504,4]
[328470421,1717423848756,-500.0,0.00031504,4]
[328470422,1717423848765,-500.0,0.00031504,4]
[328470423,1717423848775,-500.0,0.00031504,4]
[328470424,1717423848784,-500.0,0.00031504,4]
[328470425,1717423848793,-384.80027406,0.00031504,4]
[328470426,1717423848802,-606.72,0.00031504,4]
[328470427,1717423848812,-519.1,0.00031504,4]
[328470428,1717423848821,-500.0,0.00031504,4]
[328470429,1717423848831,-4664.69,0.00031504,4]
[328470430,1717423848842,-877.52,0.00031504,4]
[328470431,1717423848853,-500.0,0.00031504,4]
[328470432,1717423848862,-500.0,0.00031504,4]
[328470433,1717423848871,-151.0,0.00031504,7]
[328470434,1717423848884,-881.93,0.00031504,4]
[328470435,1717423848892,-512.78,0.00031504,4]
[328470436,1717423848902,-320.99535516,0.00031504,4]
[328470437,1717423849024,-500.0,0.00031504,4]
[328470438,1717423849054,-209.06709465,0.00031504,4]
[328470439,1717423849064,-500.0,0.00031504,4]
[328470440,1717423849074,-504.37,0.00031504,4]
[328470441,1717423849083,-2125.65,0.00031504,4]
[328470442,1717423849093,-542.95,0.00031504,4]
[328470443,1717423849102,-500.0,0.00031504,4]
[328470444,1717423849112,-630.75,0.00031504,4]
[328470445,1717423849121,-525.61,0.00031504,4]
[328470446,1717423849131,-500.0,0.00031504,4]
[328470447,1717423849141,-500.0,0.00031504,4]
[328470448,1717423849150,-500.0,0.00031504,4]
[328470449,1717423849159,-500.0,0.00031504,4]
[328470450,1717423849169,-500.0,0.00031504,4]
[328470451,1717423849178,-500.0,0.00031504,4]
[328470452,1717423849187,-500.0,0.00031504,4]
[328470453,1717423849197,-355.33528642,0.00031504,4]
[328470454,1717423849208,-784.39,0.00031504,4]
[328470455,1717423849218,-748.96,0.00031504,4]
[328470456,1717423849227,-500.0,0.00031504,4]
[328470457,1717423849237,-500.0,0.00031504,4]
[328470458,1717423849246,-500.0,0.00031504,4]
[328470459,1717423849255,-616.01,0.00031504,4]
[328470460,1717423849265,-500.0,0.00031504,4]
[328470461,1717423849274,-653.74,0.00031504,4]
[328470462,1717423849284,-500.0,0.00031504,4]
[328470463,1717423849295,-1158.99,0.00031504,4]
[328470464,1717423849305,-500.0,0.00031504,4]
[328470465,1717423849318,-500.0,0.00031504,4]
[328470466,1717423849327,-500.0,0.00031504,4]
[328470467,1717423849337,-500.0,0.00031504,4]
[328470468,1717423849347,-802.19,0.00031504,4]
[328470469,1717423849357,-500.0,0.00031504,4]
[328470470,1717423849366,-500.0,0.00031504,4]
[328470471,1717423849376,-500.0,0.00031504,4]
[328470472,1717423849387,-500.0,0.00031504,4]
[328470473,1717423849396,-500.0,0.00031504,4]
[328470474,1717423849406,-175.603437,0.00031505,7]
[328470475,1717423849416,-151.0,0.00031505,7]
[328470476,1717423849426,-500.0,0.00031506,4]
[328470477,1717423849437,-500.0,0.00031506,4]
[328470478,1717423849446,-155.956189,0.00031506,7]
[328470479,1717423849456,-500.0,0.00031506,4]
[328470480,1717423849466,-152.864937,0.00031506,7]
[328470481,1717423849476,-500.0,0.00031506,4]
[328470482,1717423849486,-1068.06,0.00031506,4]
[328470483,1717423849495,-500.0,0.00031506,4]